[Event "Titled Tuesday Blitz January 10 Early 2023"]
[White "Fathy, Elameir"]
[Black "Le Ruyet, Leopold"]
[WhiteFideId "10600396"]
[BlackFideId "645923"]
[WhiteElo "2300"]
[BlackElo "2245"]
[Result "0-1"]
[Round "10"]
[TimeControl "180+2"]
[Date "2023.01.10"]
[WhiteClock "0:00:03"]
[BlackClock "0:00:05"]

1. d4 {[%clk 0:03:00]}  Nf6 {[%clk 0:02:59]} 2. c4 {[%clk 0:03:01]}  g6 {[%clk 0:03:00]} 3. Nc3 {[%clk 0:03:01]}  Bg7 {[%clk 0:03:00]} 4. e4 {[%clk 0:03:01]}  d6 {[%clk 0:03:01]} 5. Nf3 {[%clk 0:03:02]}  O-O {[%clk 0:03:01]} 6. Be2 {[%clk 0:03:03]}  e5 {[%clk 0:03:01]} 7. d5 {[%clk 0:03:04]}  a5 {[%clk 0:03:01]} 8. Bg5 {[%clk 0:03:04]}  h6 {[%clk 0:03:00]} 9. Be3 {[%clk 0:03:00]}  Ng4 {[%clk 0:03:00]} 10. Bd2 {[%clk 0:02:59]}  f5 {[%clk 0:03:00]} 11. h3 {[%clk 0:03:00]}  Nf6 {[%clk 0:02:59]} 12. exf5 {[%clk 0:03:00]}  gxf5 {[%clk 0:02:58]} 13. g4 {[%clk 0:03:01]}  f4 {[%clk 0:02:55]} 14. g5 {[%clk 0:02:59]}  hxg5 {[%clk 0:02:50]} 15. Qc2 {[%clk 0:03:00]}  Qd7 {[%clk 0:01:53]} 16. O-O-O {[%clk 0:02:36]}  Na6 {[%clk 0:01:41]} 17. a3 {[%clk 0:02:28]}  Nc5 {[%clk 0:01:37]} 18. Nxg5 {[%clk 0:02:25]}  Qf5 {[%clk 0:01:36]} 19. Qxf5 {[%clk 0:01:39]}  Bxf5 {[%clk 0:01:37]} 20. b4 {[%clk 0:01:39]}  axb4 {[%clk 0:01:30]} 21. axb4 {[%clk 0:01:40]}  Nb3+ {[%clk 0:01:08]} 22. Kb2 {[%clk 0:01:40]}  Nd4 {[%clk 0:01:08]} 23. Rhg1 {[%clk 0:01:07]}  Nxe2 {[%clk 0:00:51]} 24. Nxe2 {[%clk 0:01:07]}  Ne4 {[%clk 0:00:51]} 25. Nxe4 {[%clk 0:00:54]}  Bxe4 {[%clk 0:00:52]} 26. Bc3 {[%clk 0:00:39]}  Kh7 {[%clk 0:00:33]} 27. Nc1 {[%clk 0:00:34]}  b5 {[%clk 0:00:25]} 28. Rde1 {[%clk 0:00:28]}  Bf5 {[%clk 0:00:23]} 29. c5 {[%clk 0:00:25]}  dxc5 {[%clk 0:00:20]} 30. bxc5 {[%clk 0:00:26]}  Rfe8 {[%clk 0:00:13]} 31. Na2 {[%clk 0:00:15]}  Ra4 {[%clk 0:00:12]} 32. Nb4 {[%clk 0:00:12]}  Bh8 {[%clk 0:00:12]} 33. Ra1 {[%clk 0:00:07]}  e4 {[%clk 0:00:09]} 34. Rxa4 {[%clk 0:00:04]}  Bxc3+ {[%clk 0:00:08]} 35. Kxc3 {[%clk 0:00:05]}  bxa4 {[%clk 0:00:09]} 36. Kd4 {[%clk 0:00:02]}  e3 {[%clk 0:00:08]} 37. fxe3 {[%clk 0:00:03]}  Rxe3 {[%clk 0:00:08]} 38. d6 {[%clk 0:00:03]}  cxd6 {[%clk 0:00:08]} 39. cxd6 {[%clk 0:00:04]}  Rb3 {[%clk 0:00:06]} 40. Kc5 {[%clk 0:00:04]}  Rc3+ {[%clk 0:00:06]} 41. Kb5 {[%clk 0:00:04]}  a3 {[%clk 0:00:06]} 42. Rg5 {[%clk 0:00:03]}  Bd7+ {[%clk 0:00:05]} 43. Ka5 {[%clk 0:00:03]}  f3 {[%clk 0:00:05]} 44. Rc5 {[%clk 0:00:02]}  Rxc5+ {[%clk 0:00:04]} 45. Kb6 {[%clk 0:00:02]}  Rc4 {[%clk 0:00:04]} 46. Nd5 {[%clk 0:00:01]}  Rd4 {[%clk 0:00:04]} 47. Nf6+ {[%clk 0:00:02]}  Kg6 {[%clk 0:00:04]} 48. Nxd7 {[%clk 0:00:03]}  Rxd6+ {[%clk 0:00:05]} 0-1


[Site "https://www.chess.com"]

[Event "Titled Tuesday Blitz January 10 Early 2023"]
[White "Yelisieiev, Yevhenii"]
[Black "Perez Rodriguez, Jennifer"]
[WhiteFideId "14139642"]
[BlackFideId "3507831"]
[WhiteElo "2418"]
[BlackElo "2242"]
[Result "1-0"]
[Round "10"]
[TimeControl "180+2"]
[Date "2023.01.10"]
[WhiteClock "0:00:54"]
[BlackClock "0:01:12"]

1. d4 {[%clk 0:02:56]}  d5 {[%clk 0:02:58]} 2. Nf3 {[%clk 0:02:55]}  Nf6 {[%clk 0:02:58]} 3. c4 {[%clk 0:02:56]}  c6 {[%clk 0:02:58]} 4. Nc3 {[%clk 0:02:55]}  e6 {[%clk 0:02:58]} 5. e3 {[%clk 0:02:46]}  Nbd7 {[%clk 0:02:58]} 6. Qc2 {[%clk 0:02:44]}  Bd6 {[%clk 0:02:55]} 7. cxd5 {[%clk 0:02:44]}  exd5 {[%clk 0:02:54]} 8. Bd3 {[%clk 0:02:44]}  O-O {[%clk 0:02:54]} 9. O-O {[%clk 0:02:43]}  Re8 {[%clk 0:02:54]} 10. h3 {[%clk 0:02:42]}  Qe7 {[%clk 0:02:48]} 11. a3 {[%clk 0:02:39]}  Ne4 {[%clk 0:02:47]} 12. b4 {[%clk 0:02:38]}  a6 {[%clk 0:02:43]} 13. Na4 {[%clk 0:02:37]}  Bc7 {[%clk 0:02:24]} 14. Nc5 {[%clk 0:02:28]}  Ndxc5 {[%clk 0:02:19]} 15. dxc5 {[%clk 0:02:24]}  Qf6 {[%clk 0:02:08]} 16. Bb2 {[%clk 0:02:21]}  Qh6 {[%clk 0:02:09]} 17. Nd2 {[%clk 0:01:49]}  Bxh3 {[%clk 0:01:59]} 18. Nxe4 {[%clk 0:01:06]}  dxe4 {[%clk 0:01:50]} 19. Bxe4 {[%clk 0:01:02]}  Bxg2 {[%clk 0:01:45]} 20. Kxg2 {[%clk 0:01:01]}  Qh2+ {[%clk 0:01:44]} 21. Kf3 {[%clk 0:01:01]}  Qh3+ {[%clk 0:01:45]} 22. Ke2 {[%clk 0:01:00]}  Qh5+ {[%clk 0:01:23]} 23. Bf3 {[%clk 0:00:56]}  Qh4 {[%clk 0:01:12]} 24. Rh1 {[%clk 0:00:54]} 1-0


[Site "https://www.chess.com"]

[Event "Titled Tuesday Blitz January 10 Early 2023"]
[White "Torres Dominguez, David"]
[Black "Iskusnyh, Sergei"]
[WhiteFideId "2220857"]
[BlackFideId "4120027"]
[WhiteElo "1994"]
[BlackElo "2440"]
[Result "0-1"]
[Round "10"]
[TimeControl "180+2"]
[Date "2023.01.10"]
[WhiteClock "0:00:34"]
[BlackClock "0:01:08"]

1. e4 {[%clk 0:03:00]}  e6 {[%clk 0:02:59]} 2. d4 {[%clk 0:02:58]}  d5 {[%clk 0:02:59]} 3. exd5 {[%clk 0:02:58]}  exd5 {[%clk 0:02:59]} 4. Bd3 {[%clk 0:02:56]}  c5 {[%clk 0:02:58]} 5. Nf3 {[%clk 0:02:54]}  Nf6 {[%clk 0:02:56]} 6. O-O {[%clk 0:02:54]}  Nc6 {[%clk 0:02:56]} 7. Re1+ {[%clk 0:02:52]}  Be7 {[%clk 0:02:56]} 8. dxc5 {[%clk 0:02:51]}  O-O {[%clk 0:02:56]} 9. Be3 {[%clk 0:02:49]}  Ng4 {[%clk 0:02:56]} 10. Qd2 {[%clk 0:02:32]}  Nxe3 {[%clk 0:02:55]} 11. Qxe3 {[%clk 0:02:32]}  Qa5 {[%clk 0:02:53]} 12. Nbd2 {[%clk 0:02:29]}  Bxc5 {[%clk 0:02:51]} 13. Qg5 {[%clk 0:02:29]}  h6 {[%clk 0:02:38]} 14. Qh5 {[%clk 0:02:20]}  Qb6 {[%clk 0:02:29]} 15. Nb3 {[%clk 0:02:15]}  Bxf2+ {[%clk 0:02:28]} 16. Kh1 {[%clk 0:02:13]}  Bxe1 {[%clk 0:02:27]} 17. Rxe1 {[%clk 0:02:14]}  Be6 {[%clk 0:02:18]} 18. Ng5 {[%clk 0:02:05]}  Rae8 {[%clk 0:01:45]} 19. Nxe6 {[%clk 0:01:57]}  Rxe6 {[%clk 0:01:43]} 20. Rxe6 {[%clk 0:01:57]}  fxe6 {[%clk 0:01:43]} 21. Qg6 {[%clk 0:01:57]}  Ne7 {[%clk 0:01:37]} 22. Qg4 {[%clk 0:01:42]}  Qe3 {[%clk 0:01:30]} 23. h3 {[%clk 0:01:30]}  Qe1+ {[%clk 0:01:29]} 24. Kh2 {[%clk 0:01:29]}  Qe5+ {[%clk 0:01:29]} 25. Kh1 {[%clk 0:01:29]}  Nf5 {[%clk 0:01:28]} 26. Bxf5 {[%clk 0:01:22]}  Qxf5 {[%clk 0:01:24]} 27. Qxf5 {[%clk 0:00:49]}  Rxf5 {[%clk 0:01:23]} 28. Kg1 {[%clk 0:00:49]}  e5 {[%clk 0:01:23]} 29. Nd2 {[%clk 0:00:45]}  e4 {[%clk 0:01:21]} 30. Nb3 {[%clk 0:00:40]}  e3 {[%clk 0:01:20]} 31. Nd4 {[%clk 0:00:40]}  Rf2 {[%clk 0:01:19]} 32. b3 {[%clk 0:00:36]}  Rd2 {[%clk 0:01:16]} 33. Nf3 {[%clk 0:00:36]}  Rxc2 {[%clk 0:01:15]} 34. a4 {[%clk 0:00:34]}  Rb2 {[%clk 0:01:08]} 0-1


[Site "https://www.chess.com"]

[Event "Titled Tuesday Blitz January 10 Early 2023"]
[White "Rustemov, Alexander"]
[Black "Campbell, Charles"]
[WhiteFideId "4119002"]
[BlackFideId "8500436"]
[WhiteElo "2525"]
[BlackElo "2179"]
[Result "1-0"]
[Round "10"]
[TimeControl "180+2"]
[Date "2023.01.10"]
[WhiteClock "0:01:36"]
[BlackClock "0:00:06"]

1. d4 {[%clk 0:03:00]}  Nf6 {[%clk 0:02:59]} 2. c4 {[%clk 0:03:00]}  e6 {[%clk 0:02:59]} 3. Nf3 {[%clk 0:02:59]}  b6 {[%clk 0:02:59]} 4. a3 {[%clk 0:02:59]}  Bb7 {[%clk 0:02:57]} 5. Nc3 {[%clk 0:03:00]}  d5 {[%clk 0:02:53]} 6. Bg5 {[%clk 0:02:59]}  Be7 {[%clk 0:02:51]} 7. Bxf6 {[%clk 0:02:56]}  Bxf6 {[%clk 0:02:51]} 8. cxd5 {[%clk 0:02:57]}  exd5 {[%clk 0:02:51]} 9. Qa4+ {[%clk 0:02:58]}  c6 {[%clk 0:02:50]} 10. g3 {[%clk 0:02:57]}  O-O {[%clk 0:02:50]} 11. Rd1 {[%clk 0:02:56]}  Re8 {[%clk 0:02:49]} 12. Bg2 {[%clk 0:02:56]}  Nd7 {[%clk 0:02:42]} 13. O-O {[%clk 0:02:55]}  g6 {[%clk 0:02:41]} 14. e3 {[%clk 0:02:52]}  a6 {[%clk 0:02:40]} 15. Ne1 {[%clk 0:02:48]}  b5 {[%clk 0:02:37]} 16. Qc2 {[%clk 0:02:46]}  Rc8 {[%clk 0:02:33]} 17. Nd3 {[%clk 0:02:42]}  Be7 {[%clk 0:02:32]} 18. b4 {[%clk 0:02:37]}  Bd6 {[%clk 0:02:30]} 19. a4 {[%clk 0:02:35]}  Nb6 {[%clk 0:02:30]} 20. Nc5 {[%clk 0:02:30]}  Bxc5 {[%clk 0:02:29]} 21. dxc5 {[%clk 0:02:29]}  Nc4 {[%clk 0:02:26]} 22. e4 {[%clk 0:02:23]}  d4 {[%clk 0:01:22]} 23. Ne2 {[%clk 0:02:23]}  Ne5 {[%clk 0:01:11]} 24. Nxd4 {[%clk 0:02:20]}  Qf6 {[%clk 0:01:05]} 25. h3 {[%clk 0:02:16]}  Rcd8 {[%clk 0:01:03]} 26. Qc3 {[%clk 0:02:11]}  Qe7 {[%clk 0:00:51]} 27. f4 {[%clk 0:02:09]}  Nc4 {[%clk 0:00:51]} 28. e5 {[%clk 0:02:08]}  Rc8 {[%clk 0:00:39]} 29. Rfe1 {[%clk 0:02:00]}  Red8 {[%clk 0:00:38]} 30. Kh2 {[%clk 0:01:58]}  Re8 {[%clk 0:00:17]} 31. Nf3 {[%clk 0:01:41]}  Rcd8 {[%clk 0:00:11]} 32. Ng5 {[%clk 0:01:38]}  h6 {[%clk 0:00:10]} 33. Ne4 {[%clk 0:01:38]}  Rxd1 {[%clk 0:00:05]} 34. Rxd1 {[%clk 0:01:37]}  Rd8 {[%clk 0:00:06]} 35. Nd6 {[%clk 0:01:36]} 1-0


[Site "https://www.chess.com"]

[Event "Titled Tuesday Blitz January 10 Early 2023"]
[White "Fisher_TheGalactic"]
[Black "Ordekalog"]
[WhiteElo "2530"]
[BlackElo "2635"]
[Result "1-0"]
[Round "10"]
[TimeControl "180+2"]
[Date "2023.01.10"]
[WhiteClock "0:00:05"]
[BlackClock "0:00:03"]

1. Nf3 {[%clk 0:02:57]}  d5 {[%clk 0:02:58]} 2. d4 {[%clk 0:02:56]}  c5 {[%clk 0:02:57]} 3. e3 {[%clk 0:02:52]}  e6 {[%clk 0:02:54]} 4. c3 {[%clk 0:02:50]}  f5 {[%clk 0:02:42]} 5. Bd3 {[%clk 0:02:48]}  Nf6 {[%clk 0:02:41]} 6. O-O {[%clk 0:02:47]}  Nbd7 {[%clk 0:02:39]} 7. Nbd2 {[%clk 0:02:40]}  Bd6 {[%clk 0:02:37]} 8. c4 {[%clk 0:02:40]}  O-O {[%clk 0:02:36]} 9. cxd5 {[%clk 0:02:39]}  Nxd5 {[%clk 0:02:35]} 10. Nc4 {[%clk 0:02:39]}  Bc7 {[%clk 0:02:34]} 11. dxc5 {[%clk 0:02:32]}  Nxc5 {[%clk 0:02:33]} 12. Bb1 {[%clk 0:02:32]}  Qf6 {[%clk 0:02:27]} 13. Qd4 {[%clk 0:02:26]}  b6 {[%clk 0:02:04]} 14. b3 {[%clk 0:02:13]}  Bb7 {[%clk 0:01:59]} 15. Bb2 {[%clk 0:02:12]}  Qh6 {[%clk 0:01:55]} 16. h3 {[%clk 0:02:09]}  Rad8 {[%clk 0:01:49]} 17. Nce5 {[%clk 0:01:43]}  Ne4 {[%clk 0:01:02]} 18. Bxe4 {[%clk 0:01:30]}  fxe4 {[%clk 0:01:01]} 19. Qxe4 {[%clk 0:01:07]}  Ba8 {[%clk 0:00:59]} 20. Ng4 {[%clk 0:01:05]}  Qh5 {[%clk 0:00:53]} 21. Qxe6+ {[%clk 0:00:59]}  Kh8 {[%clk 0:00:53]} 22. Qh6 {[%clk 0:00:47]}  Qxh6 {[%clk 0:00:42]} 23. Nxh6 {[%clk 0:00:48]}  Nf6 {[%clk 0:00:37]} 24. Nf5 {[%clk 0:00:42]}  Nh5 {[%clk 0:00:31]} 25. N5d4 {[%clk 0:00:37]}  Rde8 {[%clk 0:00:23]} 26. Rac1 {[%clk 0:00:35]}  Bb8 {[%clk 0:00:22]} 27. Ba3 {[%clk 0:00:34]}  Rf7 {[%clk 0:00:22]} 28. Ng5 {[%clk 0:00:29]}  Rf6 {[%clk 0:00:21]} 29. Ngf3 {[%clk 0:00:27]}  Rg6 {[%clk 0:00:20]} 30. Kh1 {[%clk 0:00:26]}  Nf6 {[%clk 0:00:19]} 31. Rc2 {[%clk 0:00:23]}  Ne4 {[%clk 0:00:18]} 32. Rfc1 {[%clk 0:00:23]}  Bb7 {[%clk 0:00:17]} 33. Nf5 {[%clk 0:00:17]}  Ng5 {[%clk 0:00:13]} 34. N5h4 {[%clk 0:00:08]}  Rh6 {[%clk 0:00:12]} 35. Nxg5 {[%clk 0:00:08]}  Rxh4 {[%clk 0:00:13]} 36. Kg1 {[%clk 0:00:05]}  h6 {[%clk 0:00:12]} 37. Nf7+ {[%clk 0:00:05]}  Kg8 {[%clk 0:00:12]} 38. Nd6 {[%clk 0:00:05]}  Bxd6 {[%clk 0:00:11]} 39. Bxd6 {[%clk 0:00:06]}  Rh5 {[%clk 0:00:11]} 40. Bg3 {[%clk 0:00:06]}  Rd5 {[%clk 0:00:10]} 41. Rc7 {[%clk 0:00:07]}  Ba6 {[%clk 0:00:08]} 42. Rxa7 {[%clk 0:00:07]}  Bd3 {[%clk 0:00:08]} 43. Rcc7 {[%clk 0:00:07]}  Kh8 {[%clk 0:00:05]} 44. Rxg7 {[%clk 0:00:06]}  Be4 {[%clk 0:00:05]} 45. Rgf7 {[%clk 0:00:05]}  Rd1+ {[%clk 0:00:04]} 46. Kh2 {[%clk 0:00:05]}  Rd6 {[%clk 0:00:03]} 47. Bxd6 {[%clk 0:00:05]} 1-0


[Site "https://www.chess.com"]

[Event "Titled Tuesday Blitz January 10 Early 2023"]
[White "Korchmar, Vasiliy"]
[Black "Kamalidenova, Meruert"]
[WhiteFideId "24131750"]
[BlackFideId "13712802"]
[WhiteElo "2438"]
[BlackElo "2350"]
[Result "0-1"]
[Round "10"]
[TimeControl "180+2"]
[Date "2023.01.10"]
[WhiteClock "0:01:25"]
[BlackClock "0:00:47"]

1. Nf3 {[%clk 0:03:00]}  Nf6 {[%clk 0:02:59]} 2. g3 {[%clk 0:02:58]}  b6 {[%clk 0:02:55]} 3. Bg2 {[%clk 0:02:58]}  Bb7 {[%clk 0:02:55]} 4. b3 {[%clk 0:02:58]}  e6 {[%clk 0:02:55]} 5. Bb2 {[%clk 0:02:58]}  Be7 {[%clk 0:02:55]} 6. O-O {[%clk 0:02:58]}  O-O {[%clk 0:02:55]} 7. c4 {[%clk 0:02:58]}  c5 {[%clk 0:02:55]} 8. d4 {[%clk 0:02:54]}  cxd4 {[%clk 0:02:51]} 9. Nxd4 {[%clk 0:02:55]}  Bxg2 {[%clk 0:02:51]} 10. Kxg2 {[%clk 0:02:56]}  d5 {[%clk 0:02:51]} 11. Nd2 {[%clk 0:02:52]}  Nbd7 {[%clk 0:02:44]} 12. Nc6 {[%clk 0:02:49]}  Qe8 {[%clk 0:02:44]} 13. cxd5 {[%clk 0:02:46]}  Nxd5 {[%clk 0:02:39]} 14. Nc4 {[%clk 0:02:36]}  Bc5 {[%clk 0:02:23]} 15. a3 {[%clk 0:02:33]}  N7f6 {[%clk 0:02:20]} 16. N6e5 {[%clk 0:02:20]}  Rd8 {[%clk 0:02:18]} 17. Qc2 {[%clk 0:02:19]}  b5 {[%clk 0:02:09]} 18. b4 {[%clk 0:02:13]}  Bxf2 {[%clk 0:02:04]} 19. Rxf2 {[%clk 0:02:08]}  bxc4 {[%clk 0:02:05]} 20. Nxc4 {[%clk 0:02:08]}  Rc8 {[%clk 0:02:04]} 21. Rf3 {[%clk 0:01:51]}  Ng4 {[%clk 0:01:58]} 22. Bd4 {[%clk 0:01:41]}  Qb5 {[%clk 0:01:50]} 23. Bc5 {[%clk 0:01:41]}  Rxc5 {[%clk 0:01:16]} 24. bxc5 {[%clk 0:01:42]}  Qxc4 {[%clk 0:01:14]} 25. Qxc4 {[%clk 0:01:42]}  Nge3+ {[%clk 0:01:14]} 26. Kf2 {[%clk 0:01:42]}  Nxc4 {[%clk 0:01:14]} 27. Rc1 {[%clk 0:01:42]}  Ne5 {[%clk 0:01:14]} 28. Rb3 {[%clk 0:01:41]}  Rc8 {[%clk 0:01:11]} 29. c6 {[%clk 0:01:40]}  g5 {[%clk 0:00:59]} 30. e4 {[%clk 0:01:40]}  Nb6 {[%clk 0:00:56]} 31. c7 {[%clk 0:01:38]}  Kf8 {[%clk 0:00:52]} 32. a4 {[%clk 0:01:36]}  Ke7 {[%clk 0:00:50]} 33. a5 {[%clk 0:01:37]}  Nbd7 {[%clk 0:00:50]} 34. Rb7 {[%clk 0:01:32]}  Nd3+ {[%clk 0:00:49]} 35. Ke3 {[%clk 0:01:32]}  Nxc1 {[%clk 0:00:50]} 36. Rxa7 {[%clk 0:01:32]}  Nb3 {[%clk 0:00:50]} 37. a6 {[%clk 0:01:27]}  Nbc5 {[%clk 0:00:50]} 38. Kd4 {[%clk 0:01:26]}  Nxa6 {[%clk 0:00:50]} 39. Rxa6 {[%clk 0:01:27]}  Rxc7 {[%clk 0:00:50]} 40. Ra5 {[%clk 0:01:27]}  e5+ {[%clk 0:00:50]} 41. Kd5 {[%clk 0:01:26]}  Rc2 {[%clk 0:00:48]} 42. Ra6 {[%clk 0:01:25]}  Rc5# {[%clk 0:00:47]} 0-1


[Site "https://www.chess.com"]

[Event "Titled Tuesday Blitz January 10 Early 2023"]
[White "Tasev, Dejan"]
[Black "Bozorov, Makhsum"]
[WhiteFideId "936618"]
[BlackFideId "14201330"]
[WhiteElo "2205"]
[BlackElo "2145"]
[Result "1-0"]
[Round "10"]
[TimeControl "180+2"]
[Date "2023.01.10"]
[WhiteClock "0:00:12"]
[BlackClock "0:00:01"]

1. e4 {[%clk 0:03:00]}  e5 {[%clk 0:02:57]} 2. Nf3 {[%clk 0:02:59]}  Nf6 {[%clk 0:02:56]} 3. Nxe5 {[%clk 0:02:59]}  d6 {[%clk 0:02:56]} 4. Nf3 {[%clk 0:03:00]}  Nxe4 {[%clk 0:02:56]} 5. Nc3 {[%clk 0:03:01]}  Nxc3 {[%clk 0:02:55]} 6. dxc3 {[%clk 0:03:01]}  Be7 {[%clk 0:02:55]} 7. Bf4 {[%clk 0:03:01]}  Nc6 {[%clk 0:02:55]} 8. Qd2 {[%clk 0:03:00]}  Be6 {[%clk 0:02:54]} 9. O-O-O {[%clk 0:03:00]}  Qd7 {[%clk 0:02:55]} 10. Kb1 {[%clk 0:02:59]}  a6 {[%clk 0:02:55]} 11. h3 {[%clk 0:02:59]}  O-O-O {[%clk 0:02:53]} 12. g4 {[%clk 0:02:57]}  h5 {[%clk 0:02:43]} 13. g5 {[%clk 0:02:53]}  Bf5 {[%clk 0:02:38]} 14. Bg2 {[%clk 0:02:49]}  Rde8 {[%clk 0:02:36]} 15. Nd4 {[%clk 0:02:41]}  Ne5 {[%clk 0:02:17]} 16. Nxf5 {[%clk 0:02:35]}  Qxf5 {[%clk 0:02:16]} 17. h4 {[%clk 0:02:26]}  Kb8 {[%clk 0:01:59]} 18. Bg3 {[%clk 0:02:19]}  Nc4 {[%clk 0:01:08]} 19. Qd4 {[%clk 0:01:59]}  Qb5 {[%clk 0:01:07]} 20. b3 {[%clk 0:01:53]}  Ne5 {[%clk 0:01:07]} 21. a4 {[%clk 0:01:44]}  Qb6 {[%clk 0:00:59]} 22. Qxb6 {[%clk 0:01:38]}  cxb6 {[%clk 0:01:00]} 23. Rhe1 {[%clk 0:01:35]}  f6 {[%clk 0:00:57]} 24. f4 {[%clk 0:01:32]}  Ng4 {[%clk 0:00:53]} 25. Be4 {[%clk 0:01:25]}  Bd8 {[%clk 0:00:45]} 26. Bg6 {[%clk 0:01:23]}  Rxe1 {[%clk 0:00:44]} 27. Rxe1 {[%clk 0:01:23]}  Bc7 {[%clk 0:00:29]} 28. c4 {[%clk 0:01:19]}  d5 {[%clk 0:00:26]} 29. cxd5 {[%clk 0:01:18]}  fxg5 {[%clk 0:00:27]} 30. hxg5 {[%clk 0:01:19]}  h4 {[%clk 0:00:27]} 31. Rh1 {[%clk 0:01:12]}  h3 {[%clk 0:00:17]} 32. Bf5 {[%clk 0:01:09]}  Ne3 {[%clk 0:00:17]} 33. Rxh3 {[%clk 0:01:04]}  Rxh3 {[%clk 0:00:16]} 34. Bxh3 {[%clk 0:01:05]}  Nxd5 {[%clk 0:00:17]} 35. Be6 {[%clk 0:01:01]}  Nxf4 {[%clk 0:00:15]} 36. Bf7 {[%clk 0:00:59]}  Nh3 {[%clk 0:00:14]} 37. Bh4 {[%clk 0:00:53]}  Bf4 {[%clk 0:00:11]} 38. g6 {[%clk 0:00:52]}  Be5 {[%clk 0:00:10]} 39. Kc1 {[%clk 0:00:49]}  Nf4 {[%clk 0:00:11]} 40. Kd2 {[%clk 0:00:47]}  Kc7 {[%clk 0:00:11]} 41. Bg5 {[%clk 0:00:44]}  Kd6 {[%clk 0:00:07]} 42. Ke3 {[%clk 0:00:43]}  Nd5+ {[%clk 0:00:08]} 43. Kf3 {[%clk 0:00:38]}  Nb4 {[%clk 0:00:06]} 44. c4 {[%clk 0:00:33]}  b5 {[%clk 0:00:06]} 45. axb5 {[%clk 0:00:33]}  axb5 {[%clk 0:00:07]} 46. cxb5 {[%clk 0:00:26]}  Kc5 {[%clk 0:00:07]} 47. Bc4 {[%clk 0:00:26]}  Nc2 {[%clk 0:00:05]} 48. Ke4 {[%clk 0:00:24]}  Ba1 {[%clk 0:00:05]} 49. Be7+ {[%clk 0:00:23]}  Kb6 {[%clk 0:00:04]} 50. b4 {[%clk 0:00:20]}  Bb2 {[%clk 0:00:03]} 51. Bc5+ {[%clk 0:00:20]}  Kc7 {[%clk 0:00:02]} 52. b6+ {[%clk 0:00:20]}  Kc8 {[%clk 0:00:02]} 53. Be6+ {[%clk 0:00:20]}  Kb8 {[%clk 0:00:02]} 54. Bd6+ {[%clk 0:00:20]}  Ka8 {[%clk 0:00:02]} 55. Bd5 {[%clk 0:00:19]}  Ba3 {[%clk 0:00:02]} 56. Bf8 {[%clk 0:00:17]}  Bb2 {[%clk 0:00:02]} 57. Kd3 {[%clk 0:00:16]}  Ne1+ {[%clk 0:00:01]} 58. Ke2 {[%clk 0:00:16]}  Nc2 {[%clk 0:00:01]} 59. Bc5 {[%clk 0:00:15]}  Na3 {[%clk 0:00:01]} 60. Kd3 {[%clk 0:00:13]}  Nb5 {[%clk 0:00:01]} 61. Bg2 {[%clk 0:00:12]} 1-0


[Site "https://www.chess.com"]

[Event "Titled Tuesday Blitz January 10 Early 2023"]
[White "Khalafova, Narmin"]
[Black "Osmak, Yuliia"]
[WhiteFideId "13402625"]
[BlackFideId "14101602"]
[WhiteElo "2246"]
[BlackElo "2440"]
[Result "0-1"]
[Round "10"]
[TimeControl "180+2"]
[Date "2023.01.10"]
[WhiteClock "0:00:05"]
[BlackClock "0:00:34"]

1. e4 {[%clk 0:00:08]}  c6 {[%clk 0:02:56]} 2. Nc3 {[%clk 0:00:07]}  d5 {[%clk 0:02:56]} 3. Nf3 {[%clk 0:00:08]}  Bg4 {[%clk 0:02:52]} 4. h3 {[%clk 0:00:07]}  Bxf3 {[%clk 0:02:50]} 5. Qxf3 {[%clk 0:00:08]}  e6 {[%clk 0:02:51]} 6. d3 {[%clk 0:00:08]}  Nf6 {[%clk 0:02:45]} 7. Bd2 {[%clk 0:00:09]}  Nbd7 {[%clk 0:02:44]} 8. O-O-O {[%clk 0:00:09]}  d4 {[%clk 0:02:37]} 9. Ne2 {[%clk 0:00:08]}  e5 {[%clk 0:02:32]} 10. g4 {[%clk 0:00:07]}  c5 {[%clk 0:02:15]} 11. Kb1 {[%clk 0:00:08]}  Nb6 {[%clk 0:02:02]} 12. g5 {[%clk 0:00:08]}  Nfd7 {[%clk 0:02:02]} 13. h4 {[%clk 0:00:09]}  Bd6 {[%clk 0:02:00]} 14. Ng3 {[%clk 0:00:09]}  g6 {[%clk 0:01:36]} 15. Qg4 {[%clk 0:00:09]}  Qc7 {[%clk 0:01:25]} 16. h5 {[%clk 0:00:10]}  O-O-O {[%clk 0:01:23]} 17. Bg2 {[%clk 0:00:08]}  c4 {[%clk 0:01:22]} 18. Bc1 {[%clk 0:00:06]}  Kb8 {[%clk 0:01:19]} 19. Rhf1 {[%clk 0:00:06]}  Rc8 {[%clk 0:01:18]} 20. Qe2 {[%clk 0:00:07]}  c3 {[%clk 0:01:15]} 21. b3 {[%clk 0:00:06]}  a5 {[%clk 0:01:14]} 22. Bh3 {[%clk 0:00:03]}  a4 {[%clk 0:01:13]} 23. Bxd7 {[%clk 0:00:04]}  Qxd7 {[%clk 0:01:11]} 24. Qf3 {[%clk 0:00:04]}  axb3 {[%clk 0:01:01]} 25. axb3 {[%clk 0:00:05]}  Kc7 {[%clk 0:00:52]} 26. Qe2 {[%clk 0:00:03]}  Ra8 {[%clk 0:00:51]} 27. f4 {[%clk 0:00:04]}  Ra5 {[%clk 0:00:47]} 28. fxe5 {[%clk 0:00:05]}  Bxe5 {[%clk 0:00:38]} 29. Bf4 {[%clk 0:00:04]}  Bxf4 {[%clk 0:00:34]} 30. Rxf4 {[%clk 0:00:05]}  Rha8 {[%clk 0:00:34]} 0-1


[Site "https://www.chess.com"]

[Event "Titled Tuesday Blitz January 10 Early 2023"]
[White "Melian, Juan Sebastian"]
[Black "Qashashvili, Alexandre"]
[WhiteFideId "3706575"]
[BlackFideId "13600842"]
[WhiteElo "2293"]
[BlackElo "2505"]
[Result "0-1"]
[Round "10"]
[TimeControl "180+2"]
[Date "2023.01.10"]
[WhiteClock "0:00:28"]
[BlackClock "0:00:23"]

1. d4 {[%clk 0:02:54]}  c6 {[%clk 0:03:00]} 2. Nf3 {[%clk 0:02:50]}  d5 {[%clk 0:03:00]} 3. Nbd2 {[%clk 0:02:43]}  Nf6 {[%clk 0:03:00]} 4. c4 {[%clk 0:02:43]}  Bf5 {[%clk 0:02:59]} 5. e3 {[%clk 0:02:35]}  e6 {[%clk 0:02:58]} 6. Nh4 {[%clk 0:02:34]}  Bg4 {[%clk 0:02:58]} 7. Qb3 {[%clk 0:02:31]}  b6 {[%clk 0:02:58]} 8. cxd5 {[%clk 0:02:28]}  exd5 {[%clk 0:02:58]} 9. Bd3 {[%clk 0:02:27]}  Bd6 {[%clk 0:02:54]} 10. Nf5 {[%clk 0:02:20]}  Bxf5 {[%clk 0:02:51]} 11. Bxf5 {[%clk 0:02:21]}  O-O {[%clk 0:02:50]} 12. O-O {[%clk 0:02:19]}  Qe7 {[%clk 0:02:48]} 13. h3 {[%clk 0:02:18]}  Nbd7 {[%clk 0:02:45]} 14. Re1 {[%clk 0:02:13]}  g6 {[%clk 0:02:43]} 15. Bd3 {[%clk 0:02:13]}  Rfe8 {[%clk 0:02:39]} 16. Qd1 {[%clk 0:02:13]}  c5 {[%clk 0:02:33]} 17. dxc5 {[%clk 0:02:07]}  bxc5 {[%clk 0:02:34]} 18. Nf3 {[%clk 0:02:04]}  Ne5 {[%clk 0:02:33]} 19. Be2 {[%clk 0:02:01]}  Rad8 {[%clk 0:02:30]} 20. Rb1 {[%clk 0:01:47]}  Ne4 {[%clk 0:01:44]} 21. g3 {[%clk 0:01:16]}  Qe6 {[%clk 0:01:38]} 22. Kg2 {[%clk 0:01:16]}  Nxf2 {[%clk 0:01:26]} 23. Kxf2 {[%clk 0:01:13]}  Qxh3 {[%clk 0:01:24]} 24. Nxe5 {[%clk 0:01:10]}  Qh2+ {[%clk 0:01:19]} 25. Kf1 {[%clk 0:01:04]}  Rxe5 {[%clk 0:01:13]} 26. Bf3 {[%clk 0:00:52]}  Qxg3 {[%clk 0:01:04]} 27. Ke2 {[%clk 0:00:45]}  d4 {[%clk 0:00:57]} 28. Rf1 {[%clk 0:00:39]}  Qf4 {[%clk 0:00:41]} 29. e4 {[%clk 0:00:36]}  Rxe4+ {[%clk 0:00:39]} 30. Bxe4 {[%clk 0:00:37]}  Qxe4+ {[%clk 0:00:38]} 31. Kf2 {[%clk 0:00:36]}  Qxb1 {[%clk 0:00:33]} 32. Qf3 {[%clk 0:00:31]}  Qc2+ {[%clk 0:00:26]} 33. Kg1 {[%clk 0:00:28]}  Qh2# {[%clk 0:00:23]} 0-1


[Site "https://www.chess.com"]